bitfinex-derivatives/quotes_ETHF0:USTF0_20210111
["timestamp","ask_amount","ask_price","bid_price","bid_amount"]
[1610405559102,79.59746115,1058.2,1057.2,4.00959]
[1610405559307,79.67223524,1058.4,1057.2,4.00959]
[1610405559502,79.67223524,1058.4,1057.9,62.0137]
[1610405559708,21.61248688,1058.7,1057.9,62.0137]
[1610405559709,99.12100218,1058.7,1057.9,62.0137]
[1610405559906,99.12100218,1058.7,1058.3,4.00959]
[1610405560106,99.1916283,1058.9,1058.3,4.00959]
[1610405560304,1.9367802,1058.9,1058.6,65.6254]
[1610405560504,99.22667255,1059.0,1058.6,65.6254]
[1610405560713,79.89066764,1059.2,1058.6,65.6254]
[1610405561106,22.81205833,1059.8,1058.6,65.6254]
[1610405561107,99.37328784,1059.4,1058.6,65.6254]
[1610405561307,99.37328784,1059.4,1058.3,4.00959]
[1610405561607,2.1805,1059.4,1059.1,60.7249]
[1610405561807,2.1805,1059.4,1059.3,4.00959]
[1610405562207,99.75614741,1060.1,1059.3,4.00959]
[1610405562407,99.77147063,1060.2,1059.3,4.00959]
[1610405562609,99.77147063,1060.2,1059.7,77.535]
[1610405562809,99.83720601,1060.3,1059.7,77.535]
[1610405563007,99.87310011,1060.4,1059.7,77.535]
[1610405563307,99.87310011,1060.4,1059.4,2.1362]
[1610405563507,2.2271,1060.4,1060.1,57.4449]
[1610405563909,2.2271,1060.4,1060.3,4.00959]
[1610405564707,99.87903727,1060.7,1060.4,68.2789]
[1610405565007,99.86431384,1060.8,1060.3,4.00959]
[1610405565210,1.6724,1060.8,1060.5,70.4917]
[1610405565409,1.6724,1060.8,1060.3,4.00959]
[1610405565711,1.6724,1060.8,1060.7,64.6462]
[1610405565909,1.6724,1060.8,1060.7,68.65579]
[1610405566309,99.81334724,1061.4,1060.7,68.65579]
[1610405566512,99.80842188,1061.5,1060.7,68.65579]
[1610405566710,99.80842188,1061.5,1060.7,4.00959]
[1610405567011,99.80842188,1061.5,1061.1,54.5222]
[1610405567417,99.79088437,1061.6,1061.1,54.5222]
[1610405567619,99.79088437,1061.6,1060.7,4.00959]
[1610405567814,99.77982858,1061.7,1061.5,4.00959]
[1610405568011,22.92649711,1062.2,1061.5,4.00959]
[1610405568012,99.75552011,1062.0,1061.5,4.00959]
[1610405568211,99.75552011,1062.0,1061.9,58.2575]
[1610405568412,99.73783574,1062.2,1061.9,58.2575]
[1610405568612,99.73783574,1062.2,1061.5,4.00959]
[1610405568917,99.73312272,1062.3,1061.5,4.00959]
[1610405569213,101.82680782,1062.2,1061.2,58.6334]
[1610405569411,112.51240782,1062.2,1061.2,58.6334]
[1610405569715,99.73903494,1062.0,1061.2,56.9767]
[1610405570012,4.00959,1061.6,1060.9,4.00959]
[1610405570213,12.26009,1061.6,1057.5,5.6037]
[1610405570414,60.0548,1061.0,1059.9,59.2437]
[1610405570713,4.00959,1061.6,1057.6,6.3441]
[1610405570913,64.3478,1060.3,1057.8,60.8786]
[1610405571112,66.8317,1060.3,1057.8,60.8786]
[1610405571313,66.8317,1060.3,1057.6,2.0013]
[1610405571314,54.3349,1059.4,1057.6,2.0013]
[1610405571813,4.00959,1058.8,1057.6,2.0013]
[1610405572013,63.2332,1058.7,1057.6,2.0013]
[1610405572313,1.8211,1058.7,1057.6,2.0013]
[1610405572513,65.2478,1058.1,1056.8,72.1406]
[1610405572714,67.5205,1058.1,1056.8,72.1406]
[1610405573815,4.00959,1057.3,1056.7,4.00959]
[1610405574117,4.00959,1057.3,1055.6,78.728]
[1610405574118,62.74299,1057.3,1055.6,78.728]
[1610405574316,4.00959,1057.3,1054.4,5.16962968]
[1610405574517,4.00959,1057.3,1054.2,5.17038843]
[1610405574722,77.5999,1057.0,1054.6,55.3836]
[1610405574918,79.9594,1057.0,1054.6,55.3836]
[1610405575919,4.00959,1056.2,1055.5,4.00959]
[1610405576120,5.80639,1056.2,1055.5,4.00959]
[1610405576319,5.80639,1056.2,1055.5,3.34959]
[1610405576520,5.80639,1056.2,1054.6,55.3836]
[1610405576821,1.7968,1056.2,1054.6,55.3836]
[1610405577021,1.7968,1056.2,1052.9,5.17615535]
[1610405577221,1.7968,1056.2,1055.5,64.5523]
[1610405577521,2.3595,1057.0,1055.5,64.5523]
[1610405577720,2.3595,1057.0,1055.4,2.1624]
[1610405577721,2.3595,1057.0,1056.3,72.8254]
[1610405578121,1.7712,1057.5,1056.3,74.3459]
[1610405578322,1.7712,1057.5,1056.3,1.5205]
[1610405578323,0.4112,1057.5,1056.3,1.5205]
[1610405578521,5.901,1058.0,1057.4,4.00959]
[1610405578721,5.901,1058.0,1057.4,6.15459]
[1610405578921,5.901,1058.0,1057.7,70.6707]
[1610405579121,5.901,1058.0,1057.7,72.2837]
[1610405580821,4.00959,1058.7,1057.7,72.2837]
[1610405581023,99.98427419,1059.6,1057.7,1.613]
[1610405581223,99.97225251,1059.7,1057.8,67.6932]
[1610405581621,99.96868982,1059.8,1057.7,1.613]
[1610405581821,99.96868982,1059.8,1058.3,62.3126]
[1610405582021,99.94928471,1060.0,1058.3,62.3126]
[1610405582321,99.92002724,1060.3,1058.3,1.5246]
[1610405582523,4.00959,1059.4,1058.3,1.5246]
[1610405582722,11.91029,1059.4,1058.3,1.5246]
[1610405582926,4.00959,1059.4,1058.3,1.5246]
[1610405583124,64.8158,1059.2,1058.3,1.5246]
[1610405583325,64.8158,1059.2,1057.7,1.613]
[1610405583925,64.8158,1059.2,1057.5,64.7374]
[1610405584427,4.00959,1058.4,1057.7,4.00959]
[1610405584628,1.9096,1058.4,1057.7,4.00959]
[1610405585029,1.9096,1058.4,1057.7,72.37809]
[1610405585830,1.6835,1059.3,1057.7,72.37809]
[1610405586031,1.7809,1058.8,1057.7,1.9164]
[1610405586229,1.7809,1058.8,1057.7,0.0464]
[1610405586431,4.00959,1057.8,1055.1,5.14682602]
[1610405586631,62.14239,1057.8,1055.8,63.68]
[1610405586831,63.66189,1057.8,1055.8,63.68]
[1610405588633,63.66189,1057.8,1053.5,223.4717]
[1610405588634,4.00959,1056.2,1055.2,61.4837]
[1610405588832,6.29869,1056.2,1053.5,5.1743691]
[1610405589036,6.29869,1056.2,1054.5,55.4503]
[1610405589236,6.29869,1056.2,1053.4,5.17561358]
[1610405589436,55.3247,1055.9,1054.5,2.0257]
[1610405589936,57.0775,1055.9,1054.5,2.0257]
[1610405590136,1.7528,1055.9,1054.5,2.0257]
[1610405590336,63.5141,1055.4,1053.5,71.8681]
[1610405590536,63.5141,1055.4,1053.9,4.00959]
[1610405590537,4.00959,1054.2,1053.9,4.00959]
[1610405590836,1.6954,1054.9,1053.9,4.00959]
[1610405591036,1.6954,1054.9,1053.9,5.57099]
[1610405591837,2.0228,1055.4,1053.9,5.57099]
[1610405592543,2.0228,1055.4,1054.3,4.00959]
[1610405592739,2.0228,1055.4,1054.3,5.75379]
[1610405592940,2.0228,1055.4,1054.3,1.7442]
[1610405593744,67.3574,1055.2,1054.3,1.7442]
[1610405594541,4.00959,1054.4,1054.3,1.7442]
[1610405594742,4.00959,1054.4,1054.3,1.6499]
[1610405595042,5.90259,1054.4,1053.6,4.00959]
[1610405595443,5.90259,1054.4,1053.6,2.95659]
[1610405595643,1.893,1054.4,1053.6,2.95659]
[1610405596143,1.9649,1055.0,1053.6,5.14099]
[1610405596344,1.9649,1055.0,1053.8,76.9617]
[1610405596643,1.7528,1055.9,1054.3,4.00959]
[1610405596843,4.00959,1056.0,1054.3,6.27869]
[1610405597044,6.4826,1057.0,1054.5,54.5075]
[1610405597446,6.4826,1057.0,1054.3,6.27869]
[1610405597447,6.1635,1057.2,1054.3,6.27869]
[1610405597644,6.1635,1057.2,1055.1,53.0104]
[1610405597945,6.1635,1057.2,1055.1,55.4021]
[1610405598445,6.1635,1057.2,1056.1,4.00959]
[1610405598848,6.1635,1057.2,1056.2,53.6139]
[1610405599748,6.3624,1058.7,1056.2,53.6139]
[1610405599949,71.0148,1058.9,1056.2,53.6139]
[1610405600450,4.00959,1059.0,1057.8,4.00959]
[1610405600851,6.36529,1059.0,1057.8,4.00959]
[1610405601650,6.36529,1059.0,1056.1,2.1346]
[1610405601850,64.3306,1058.9,1056.8,78.2187]
[1610405602551,4.00959,1057.0,1056.8,78.2187]
[1610405602851,4.00959,1057.0,1056.1,2.1346]
[1610405603052,4.00959,1057.0,1056.1,67.1143]
[1610405603452,4.00959,1057.0,1055.1,2.3917]
[1610405603652,4.00959,1057.0,1054.9,73.9127]
[1610405604254,13.38629,1057.0,1054.9,73.9127]
[1610405604454,4.00959,1055.0,1054.3,2.2691]
[1610405604757,4.00959,1055.0,1053.0,5.17742506]
[1610405604953,4.00959,1055.0,1053.6,55.2908]
[1610405605155,5.84229,1055.0,1053.6,55.2908]
[1610405605356,5.84229,1055.0,1053.6,57.3744]
[1610405606255,5.84229,1055.0,1053.6,55.2908]
[1610405606656,1.8327,1055.0,1053.7,4.00959]
[1610405607060,0.757,1055.0,1054.0,57.995]
[1610405607258,2.313,1055.6,1054.0,57.995]
[1610405607558,71.449,1056.9,1054.0,89.6509]
[1610405607759,1.5111,1057.2,1054.8,73.1367]
[1610405607959,100.0604501,1057.8,1054.8,73.1367]
[1610405608159,21.84171428,1058.0,1054.8,75.4417]
[1610405608160,100.08457595,1058.0,1054.8,75.4417]
[1610405608559,4.00959,1057.5,1056.3,4.00959]
[1610405608759,100.11847078,1058.1,1056.5,53.9339]
[1610405608961,100.10434422,1058.5,1056.5,53.9339]
[1610405609161,100.10434422,1058.5,1056.5,56.2201]
[1610405609360,100.07678284,1058.7,1056.5,56.2201]
[1610405609559,24.20097948,1059.0,1056.5,56.2201]
[1610405609560,2.3557,1059.0,1056.5,56.2201]
[1610405610060,100.03178922,1059.2,1056.5,2.2862]
[1610405610260,14.93611967,1059.3,1056.5,2.2862]
[1610405610261,100.01868643,1059.3,1057.1,69.4989]
[1610405610562,100.01868643,1059.3,1058.6,4.00959]
[1610405610760,13.84856446,1059.3,1058.6,4.00959]
[1610405610961,99.9849994,1059.5,1058.6,4.00959]
[1610405611161,99.9849994,1059.5,1058.6,3.06959]
[1610405611361,99.97667272,1059.6,1058.2,70.8363]
[1610405611562,99.97667272,1059.6,1057.5,2.458]
[1610405611761,101.60127272,1059.6,1057.5,0.1255]
[1610405611962,100.0169586,1059.4,1057.1,1.8186]
[1610405612162,73.5628,1058.8,1057.1,1.8186]
[1610405612361,30.0,1058.7,1056.2,63.5433]
[1610405612561,4.00959,1056.6,1055.3,4.00959]
[1610405612760,5.94059,1056.6,1055.3,4.00959]
[1610405613061,5.94059,1056.6,1054.8,57.0752]
[1610405613362,5.94059,1056.6,1053.4,30.0]
[1610405613363,5.94059,1056.6,1053.4,5.1745148]
[1610405613561,5.94059,1056.6,1053.5,68.1241]
[1610405613861,5.94059,1056.6,1053.5,70.1579]
[1610405614263,5.94059,1056.6,1053.5,100.1579]
[1610405614464,5.94059,1056.6,1053.5,32.0338]
[1610405614662,1.931,1056.6,1055.8,4.00959]
[1610405615263,1.931,1056.6,1055.9,66.1855]
[1610405615663,80.31903228,1058.2,1055.9,67.983]
[1610405615864,70.7515,1058.6,1055.9,67.983]
[1610405616064,12.5734,1058.6,1055.9,31.7975]
[1610405616266,12.5734,1058.6,1056.4,74.7975]
[1610405616465,12.5734,1058.6,1056.4,76.7891]
[1610405616667,4.00959,1058.3,1057.6,4.00959]
[1610405616866,6.49189,1058.3,1057.6,4.00959]
[1610405617568,6.49189,1058.3,1056.4,76.7891]
[1610405617768,6.49189,1058.3,1056.4,1.9916]
[1610405618270,6.49189,1058.3,1055.9,57.8613]
[1610405618669,4.00959,1056.8,1056.0,4.00959]
[1610405620771,4.00959,1056.6,1056.0,4.00959]
[1610405621273,5.72909,1056.6,1056.0,4.00959]
[1610405621673,5.72909,1056.6,1055.6,1.725]
[1610405621873,5.72909,1056.6,1055.5,57.4359]
[1610405622673,4.00959,1055.9,1055.5,61.44549]
[1610405622973,4.00959,1055.9,1055.5,4.00959]
[1610405623273,4.00959,1055.9,1055.3,2.1624]
[1610405623573,4.00959,1055.9,1053.3,5.17623091]
[1610405623574,5.82249,1055.9,1053.3,5.17623091]
[1610405623774,5.82249,1055.9,1053.4,77.5384]
[1610405623975,5.82249,1055.9,1053.4,79.2949]
[1610405624374,14.50439,1055.9,1053.4,79.2949]
[1610405624784,4.00959,1054.1,1053.6,4.00959]
[1610405624975,5.95369,1054.1,1053.6,4.00959]
[1610405625780,5.95369,1054.1,1052.9,57.4468]
[1610405626580,1.9441,1054.1,1052.9,57.4468]
[1610405626780,1.9441,1054.1,1053.6,4.00959]
[1610405627184,79.6125,1055.9,1053.6,4.00959]
[1610405627382,1.8129,1055.9,1053.6,4.00959]
[1610405627581,1.8129,1055.9,1054.0,68.4599]
[1610405627782,1.8129,1055.9,1054.0,70.1279]
[1610405628382,1.8367,1056.3,1054.0,31.668]
[1610405628681,79.40689329,1057.8,1055.0,2.2561]
[1610405628883,79.54491085,1058.2,1055.9,64.2483]
[1610405629182,4.00959,1058.4,1056.9,4.00959]
[1610405629584,4.00959,1058.4,1057.1,75.0637]
[1610405629784,4.00959,1058.4,1057.1,77.4797]
[1610405630883,4.00959,1058.4,1057.1,2.416]
[1610405631084,4.00959,1057.4,1057.1,2.416]
[1610405631284,4.00959,1057.4,1056.8,2.1912]
[1610405631484,4.00959,1057.4,1056.8,1.2003]
[1610405631684,5.68889,1057.4,1055.9,56.9659]
[1610405632085,5.68889,1057.4,1055.9,2.3832]
[1610405632286,53.7187,1057.3,1054.9,56.0212]
[1610405632686,75.5326,1056.6,1054.0,53.077]
[1610405632984,1.5835,1056.6,1053.4,1.9175]
[1610405633185,4.00959,1054.3,1053.6,4.00959]
[1610405634085,2.3676,1054.5,1053.6,4.00959]
[1610405634486,2.3676,1054.5,1053.7,65.9863]
[1610405634687,69.147,1056.5,1053.7,67.8608]
[1610405634888,6.3774,1056.5,1053.7,31.8745]
[1610405635187,6.3774,1056.5,1055.5,4.00959]
[1610405635487,78.78371992,1058.0,1055.9,74.3295]
[1610405635787,78.86939504,1058.4,1055.9,76.5219]
[1610405636097,78.9797493,1058.7,1056.4,57.1881]
[1610405636288,79.04447682,1059.0,1056.4,57.1881]
[1610405636488,79.04447682,1059.0,1056.4,59.0696]
[1610405636688,79.03494415,1059.1,1056.4,59.0696]
[1610405637088,4.00959,1058.1,1058.0,4.00959]
[1610405637390,4.00959,1058.1,1056.4,59.0696]
[1610405637706,4.00959,1058.1,1056.4,1.8815]
[1610405639191,4.00959,1056.5,1056.4,1.8815]
[1610405639692,81.40539,1056.5,1055.5,1.7718]
[1610405639893,81.40539,1056.5,1054.7,60.4555]
[1610405640193,4.00959,1056.5,1053.2,5.17603531]
[1610405640492,76.553,1056.2,1053.2,73.2166]
[1610405640692,78.8784,1056.2,1053.2,73.2166]
[1610405641392,1.6253,1055.0,1053.9,4.00959]
[1610405641592,1.6253,1055.0,1053.9,5.75319]
[1610405641892,2.3254,1056.2,1054.2,105.9271]
[1610405642092,2.3254,1056.2,1054.2,31.79]
[1610405642292,2.3861,1056.7,1055.0,30.0]
[1610405642792,78.47677864,1058.3,1055.0,30.0]
[1610405643091,151.11214166,1058.5,1055.0,30.0]
[1610405643293,4.00959,1058.3,1057.5,4.00959]
[1610405643593,4.00959,1058.3,1056.9,1.6957]
[1610405644393,70.6902,1058.0,1056.1,2.0691]
[1610405644793,150.70010016,1058.0,1056.1,2.0691]
[1610405645198,78.35615873,1057.8,1056.1,2.0691]
[1610405645400,4.00959,1056.2,1055.6,67.2771]
[1610405645599,6.49249,1056.2,1054.9,2.2512]
[1610405646000,6.49249,1056.2,1054.4,79.1098]
[1610405647407,4.00959,1054.5,1054.2,5.79959]
[1610405647919,2.3894,1055.5,1054.2,5.79959]
[1610405648313,2.3894,1055.5,1054.2,61.42619]
[1610405648602,2.3894,1055.5,1054.3,30.0]
[1610405648799,18.41718188,1057.4,1054.3,30.0]
[1610405648800,78.21674201,1057.5,1054.3,30.0]
[1610405649000,1.6061,1058.0,1055.2,65.6611]
[1610405649307,1.6061,1058.0,1055.3,30.0]
[1610405649602,4.00959,1058.0,1057.5,4.00959]
[1610405649802,4.00959,1058.0,1055.2,1.7363]
[1610405650005,4.00959,1058.0,1056.6,72.7204]
[1610405650217,4.00959,1058.0,1056.6,75.175]
[1610405650413,4.00959,1058.0,1056.6,2.4546]
[1610405650603,59.8966,1057.8,1056.6,2.4546]
[1610405650804,62.2262,1057.8,1056.1,2.4182]
[1610405651007,71.2262,1057.8,1055.3,74.3719]
[1610405651205,62.5962,1057.0,1055.2,1.7363]
[1610405651605,62.5962,1057.0,1054.2,1.79]
[1610405651606,4.00959,1055.2,1054.3,4.00959]
[1610405652711,1.8751,1055.4,1054.3,4.00959]
[1610405652911,1.8751,1055.4,1054.3,5.75259]
[1610405653123,1.8751,1055.4,1054.3,35.75259]
[1610405653316,1.67,1057.0,1054.3,35.75259]
[1610405653714,1.67,1057.0,1056.0,4.00959]
[1610405654612,1.67,1057.0,1055.8,1.667]
[1610405655515,70.2723,1056.5,1054.3,1.743]
[1610405655715,4.00959,1054.6,1054.3,1.743]
[1610405657316,4.00959,1054.6,1053.2,62.5981]
[1610405657717,4.00959,1054.2,1053.7,4.00959]
[1610405658417,1.8522,1055.2,1053.7,6.40299]
[1610405658820,1.6782,1055.5,1053.7,6.40299]
[1610405659020,1.6782,1055.5,1053.8,30.0]
[1610405659520,2.2332,1055.9,1053.8,30.0]
[1610405659720,2.2332,1055.9,1054.4,4.00959]
[1610405659920,2.2332,1055.9,1054.4,5.63369]
[1610405660119,69.8274,1056.7,1054.4,5.63369]
[1610405660320,1.67,1057.0,1054.4,35.63369]
[1610405660520,1.67,1057.0,1054.4,101.23789]
[1610405660722,6.4664,1057.6,1054.4,101.23789]
[1610405661128,6.4664,1057.6,1054.4,71.23789]
[1610405661621,4.00959,1056.1,1055.0,4.00959]
[1610405663726,4.00959,1055.7,1055.2,4.00959]
[1610405664226,4.00959,1055.7,1054.4,1.6241]
[1610405664928,4.00959,1055.7,1053.8,77.1023]
[1610405665326,4.00959,1055.7,1053.7,2.3934]
[1610405665829,66.6643,1055.8,1053.0,58.4368]
[1610405666033,66.6643,1055.8,1053.0,60.642]
[1610405667730,4.00959,1054.0,1053.7,4.00959]
[1610405668431,1.7279,1054.9,1053.7,4.00959]
[1610405668730,1.7279,1054.9,1053.7,6.00859]
[1610405669332,66.6643,1055.8,1053.7,6.00859]
[1610405669732,4.00959,1055.2,1054.3,4.00959]
[1610405670432,2.3258,1055.6,1054.3,4.00959]
[1610405670632,2.0841,1055.9,1054.3,1.6373]
[1610405671033,6.283,1056.2,1054.3,1.6373]
[1610405671833,4.00959,1055.0,1054.3,1.6373]
[1610405673636,6.21269,1055.0,1053.7,1.999]
[1610405673835,4.00959,1054.6,1053.2,73.5875]
[1610405675944,4.00959,1054.1,1053.4,4.00959]
[1610405677938,57.1074,1054.8,1053.0,2.2052]
[1610405677939,4.00959,1053.5,1053.0,2.2052]
[1610405678137,4.00959,1053.5,1052.5,59.1263]
[1610405678938,1.7314,1054.7,1052.5,59.1263]
[1610405679439,1.7314,1054.7,1052.5,60.871]
[1610405679840,4.00959,1053.5,1052.9,4.00959]
[1610405681043,2.0852,1054.4,1052.9,4.00959]
[1610405681444,2.0852,1054.4,1052.9,5.52809]
[1610405681950,4.00959,1054.9,1053.6,4.00959]
[1610405682151,4.00959,1054.9,1053.6,6.12099]
[1610405682843,5.8999,1055.8,1053.6,6.12099]
[1610405683948,71.9693,1055.9,1054.4,4.00959]
[1610405684348,71.9693,1055.9,1054.4,2.1165]
[1610405685349,71.9693,1055.9,1054.1,1.5056]
[1610405685752,73.9583,1055.9,1054.1,1.5056]
[1610405686051,4.00959,1054.2,1054.1,1.5056]
[1610405686857,4.00959,1054.2,1053.7,4.00959]
[1610405687959,4.00959,1053.8,1053.6,2.1114]
[1610405688559,4.00959,1053.8,1052.9,1.5185]
[1610405689058,4.00959,1053.8,1052.8,60.8038]
[1610405689860,4.00959,1053.6,1053.1,4.00959]
[1610405690158,1.7931,1054.6,1053.1,4.00959]
[1610405690359,1.7931,1054.6,1053.1,1.9636]
[1610405691859,4.00959,1053.5,1053.1,1.9636]
[1610405695463,4.00959,1053.5,1052.9,4.00959]
[1610405695863,4.00959,1053.3,1052.9,4.00959]
[1610405697671,4.00959,1053.3,1051.9,71.0502]
[1610405697899,4.00959,1052.5,1051.6,3.402]
[1610405698166,4.00959,1052.5,1050.9,5.18648934]
[1610405698366,63.0431,1052.2,1050.6,5.1879595]
[1610405698767,63.0431,1052.2,1050.3,5.18988679]
[1610405699268,63.0431,1052.2,1050.1,57.0124]
[1610405699469,64.7351,1052.2,1050.1,57.0124]
[1610405699870,4.00959,1051.2,1051.0,4.00959]
[1610405701073,57.258,1052.1,1051.0,4.00959]
[1610405701371,57.258,1052.1,1051.0,5.88739]
[1610405701671,1.692,1052.2,1051.0,5.88739]
[1610405701870,1.692,1052.2,1051.5,4.00959]
[1610405702071,1.8375,1052.8,1051.5,4.00959]
[1610405702271,6.3368,1053.3,1051.6,61.5639]
[1610405702473,6.3368,1053.3,1051.5,6.11529]
[1610405702673,6.3368,1053.3,1052.2,65.9726]
[1610405703171,78.14330264,1055.1,1052.2,68.145]
[1610405703371,78.20802631,1055.3,1052.2,68.145]
[1610405703972,4.00959,1054.2,1054.0,4.00959]
[1610405704270,78.34328677,1055.7,1054.0,4.00959]
[1610405704271,2.2584,1054.9,1054.0,4.00959]
[1610405705271,2.3711,1055.2,1054.0,4.00959]
[1610405705474,1.6085,1055.5,1053.9,1.6746]
[1610405705875,1.6085,1055.5,1052.2,2.1724]
[1610405705876,61.1205,1055.1,1052.9,55.7511]
[1610405706074,4.00959,1053.4,1052.3,4.00959]
[1610405706273,4.00959,1053.4,1052.2,2.1724]
[1610405706475,61.31269,1053.4,1052.2,2.1724]
[1610405707975,4.00959,1052.7,1052.2,6.18199]
[1610405708175,4.00959,1052.7,1052.2,4.00959]
[1610405708375,4.00959,1052.7,1051.3,58.9546]
[1610405709677,57.3031,1053.4,1051.3,58.9546]
[1610405709978,4.00959,1052.9,1051.8,4.00959]
[1610405711478,2.2063,1053.0,1051.8,4.00959]
[1610405711679,2.2063,1053.0,1051.9,62.341]
[1610405711879,1.4997,1053.7,1052.0,30.0]
[1610405712081,1.5573,1054.2,1053.6,4.00959]
[1610405712281,1.7078,1054.7,1053.6,4.00959]
[1610405712480,78.09534493,1055.6,1053.8,76.7111]
[1610405712681,78.28078092,1056.1,1053.8,76.7111]
[1610405713081,141.42257811,1056.4,1053.8,76.7111]
[1610405713482,63.0722,1056.4,1053.8,76.7111]
[1610405713683,93.0722,1056.4,1053.8,76.7111]
[1610405714084,93.0722,1056.4,1053.6,2.0989]
[1610405714085,4.00959,1054.9,1053.6,6.10849]
[1610405715986,4.00959,1054.0,1053.6,2.0989]
[1610405716386,1.9808,1054.9,1053.6,2.0989]
[1610405717487,1.9808,1054.9,1053.1,58.6445]
[1610405717687,1.5362,1055.2,1053.1,58.6445]
[1610405717887,1.5362,1055.2,1053.1,60.4508]
[1610405718188,4.00959,1054.4,1053.8,4.00959]
[1610405718887,56.3538,1055.4,1053.8,4.00959]
[1610405719288,56.3538,1055.4,1053.8,6.47829]
[1610405719489,56.3538,1055.4,1053.8,2.4687]
[1610405720091,4.00959,1054.1,1053.8,2.4687]
[1610405721693,4.00959,1054.1,1053.1,1.8063]
[1610405722094,4.00959,1053.2,1053.1,1.8063]
[1610405722696,4.00959,1053.2,1052.4,66.1627]
[1610405722997,4.00959,1053.2,1051.8,1.6935]
[1610405723198,4.00959,1053.2,1051.6,73.5287]
[1610405723999,4.00959,1053.0,1052.4,4.00959]
[1610405725801,4.00959,1053.0,1051.6,73.5287]
[1610405726000,4.00959,1052.8,1052.0,4.00959]
[1610405726200,4.00959,1052.8,1050.3,5.19058941]
[1610405726500,4.00959,1052.8,1051.1,63.0167]
[1610405726702,13.00959,1052.8,1051.1,63.0167]
[1610405728103,4.00959,1051.8,1051.1,63.0167]
[1610405728604,9.0,1052.8,1051.1,63.0167]
[1610405728804,9.0,1052.8,1051.1,65.477]
[1610405730007,13.00959,1052.8,1052.3,4.00959]
[1610405730207,9.0,1052.8,1052.3,4.00959]
[1610405730408,1.6688,1053.9,1052.3,6.18859]
[1610405730609,56.5594,1054.1,1052.3,6.18859]
[1610405730810,1.8171,1054.2,1052.3,6.18859]
[1610405731111,5.9482,1054.9,1052.6,54.7498]
[1610405731309,136.66940595,1055.3,1052.6,56.7869]
[1610405731510,75.5272,1055.3,1052.6,86.7869]
[1610405731913,75.5272,1055.3,1052.6,56.7869]
[1610405732112,4.00959,1055.1,1053.8,4.00959]
[1610405734113,4.00959,1054.8,1054.1,4.00959]
[1610405734817,4.00959,1054.8,1053.4,56.2125]
[1610405736016,4.00959,1053.9,1053.4,56.2125]
[1610405736215,4.00959,1053.9,1053.0,4.00959]
[1610405736415,4.00959,1053.9,1053.0,83.06039]
[1610405737717,66.8831,1054.9,1053.0,83.06039]
[1610405737917,2.1431,1055.1,1053.0,6.10039]
[1610405738117,4.00959,1055.0,1053.9,4.00959]
[1610405738319,5.9173,1055.9,1053.9,5.75459]
[1610405738817,8.2854,1055.9,1053.9,5.75459]
[1610405740118,4.00959,1054.9,1053.9,1.745]
[1610405740319,62.8407,1054.8,1053.0,59.961]
[1610405740823,65.1822,1054.8,1053.0,59.961]
[1610405742023,62.8407,1054.8,1053.0,59.961]
[1610405742224,62.8407,1054.8,1054.0,4.00959]
[1610405742423,1.5646,1055.4,1054.0,5.78769]
[1610405743024,73.4955,1055.7,1054.0,5.78769]
[1610405743926,73.4955,1055.7,1054.0,1.7781]
[1610405744128,4.00959,1054.8,1054.0,1.7781]
[1610405747429,4.00959,1054.8,1053.6,72.8345]
[1610405748129,4.00959,1054.5,1053.6,72.8345]
[1610405748330,4.00959,1054.5,1053.5,4.00959]
[1610405750434,64.328,1055.1,1053.5,4.00959]
[1610405750633,64.328,1055.1,1053.5,6.32619]
[1610405752234,4.00959,1053.8,1053.5,6.32619]
[1610405752533,4.00959,1053.8,1053.5,2.3166]
[1610405754334,62.9317,1054.5,1053.5,2.3166]
[1610405755937,62.9317,1054.5,1053.0,2.0908]
[1610405756239,4.00959,1053.7,1053.5,1.8976]
[1610405761044,4.00959,1053.7,1052.6,2.0371]
[1610405761244,4.00959,1053.7,1052.5,79.3233]
[1610405762144,67.3575,1053.8,1052.5,79.3233]
[1610405764245,71.36709,1053.8,1052.9,4.00959]
[1610405764445,71.36709,1053.8,1052.9,5.99999]
[1610405764944,4.00959,1053.8,1052.9,5.99999]
[1610405765145,6.3394,1054.6,1052.9,5.99999]
[1610405766045,53.1035,1054.7,1052.9,5.99999]
[1610405766246,4.00959,1054.4,1053.3,4.00959]
[1610405768347,4.00959,1054.4,1053.9,4.00959]
[1610405768545,4.00959,1054.4,1053.9,5.68069]
[1610405770250,4.00959,1054.4,1054.1,4.00959]
[1610405770951,4.00959,1054.4,1053.9,1.6711]
[1610405771253,6.2547,1055.2,1053.9,1.6711]
[1610405771451,6.2547,1055.2,1054.0,65.5679]
[1610405771651,2.2292,1055.4,1054.0,65.5679]
[1610405771852,2.2292,1055.4,1053.9,1.6711]
[1610405771853,12.359,1056.3,1054.4,71.7954]
[1610405772253,4.00959,1055.3,1054.5,4.00959]
[1610405774257,4.00959,1055.8,1055.1,4.00959]
[1610405774455,79.2851,1056.5,1055.1,4.00959]
[1610405774456,5.9139,1056.6,1055.1,4.00959]
[1610405774658,5.9139,1056.6,1055.1,6.20079]
[1610405774859,82.2268,1057.1,1055.2,75.6008]
[1610405775156,76.1431,1057.1,1055.2,75.6008]
[1610405775558,73.6871,1057.1,1055.2,75.6008]
[1610405776460,4.00959,1056.6,1055.8,4.00959]
[1610405776659,4.00959,1056.6,1055.2,75.6008]
[1610405776859,4.00959,1056.6,1055.1,2.1912]